Cogmind - Beta 10.2 @@@ ROGUE MODE // 2022.01.20 @ 08:42:02 Player: xerxia Result: Destroyed by H-55 Commando with Gauss Rifle Performance ------------- Evolutions (2) 1000 Regions Visited (4) 800 Robots Destroyed (31) 155 Value Destroyed (711) 711 Prototype IDs (0) 0 Alien Tech Used (0) 0 Bonus (0) 0 TOTAL SCORE: 2666 Bonus ------- None Cogmind --------- Core Integrity 0/550 Matter 99/300 Energy 97/100 System Corruption 0% Temperature Cool (9) Movement Walking (120) Location -8/Materials Parts ------- > --- POWER (1) -------- (None) > --- PROPULSION (5) --- Improved Carbon-fiber Leg > --- UTILITY (3) ------ (None) > --- WEAPON (2) ------- (None) > --- INVENTORY (4) ---- Light Ion Engine Improved Deuterium Engine Improved Heat Sink Peak State ------------ > --- POWER ------------ Improved Ion Engine > --- PROPULSION ------- Flight Unit Flight Unit Flight Unit Flight Unit > --- UTILITY ---------- Heat Sink Small Storage Unit > --- WEAPON ----------- Mini Grenade Launcher > --- INVENTORY -------- Ion Engine Light Ion Engine Flight Unit High-capacity Storage Unit Rocket Launcher Mining Laser [Rating: 10] Favorites ----------- Power Light Ion Engine Engine Light Ion Engine Propulsion Light Treads Treads Light Treads Leg Improved Carbon-fiber Leg Flight Unit Flight Unit Utility Small Storage Unit Device Heat Sink Storage Small Storage Unit Weapon Assault Rifle Energy Gun EM Pulse Gun Energy Cannon Beam Cannon Ballistic Gun Assault Rifle Launcher Mini Grenade Launcher Special Weapon Mining Laser Build | -11 -10 -9 -9 -8 ------- Run | Scr Mat Mat Min Mat Slots Evolved 4 | . . 2 . 2 Power . | . . . . . Propulsion 3 | . . 2 . 1 Utility 1 | . . . . 1 Weapon . | . . . . . Parts Attached 27 | 6 1 2 12 6 Power 6 | 1 . 1 3 1 Engine 6 | 1 . 1 3 1 Core . | . . . . . Reactor . | . . . . . Propulsion 10 | 2 . . 5 3 Treads 3 | 2 . . . 1 Leg 1 | . . . . 1 Wheel . | . . . . . Hover . | . . . . . Flight 6 | . . . 5 1 Utility 3 | 1 1 . 1 . Device 1 | . . . 1 . Storage 2 | 1 1 . . . Processor . | . . . . . Hackware . | . . . . . Protection . | . . . . . Artifact . | . . . . . Weapon 8 | 2 . 1 3 2 Energy Gun 1 | 1 . . . . Energy Cannon 1 | . . 1 . . Ballistic Gun 3 | 1 . . 1 1 Ballistic Cannon . | . . . . . Launcher 2 | . . . 1 1 Special Weapon 1 | . . . 1 . Impact Weapon . | . . . . . Slashing Weapon . | . . . . . Piercing Weapon . | . . . . . Special Melee Weapon . | . . . . . Unidentified Prototypes . | . . . . . Parts Lost 22 | . . 2 9 11 Power 3 | . . 1 1 1 Propulsion 9 | . . . 3 6 Utility 2 | . . . 1 1 Weapon 8 | . . 1 4 3 Highest Loss Streak 8 | . . 1 7 8 Average Slot Usage (%) 75 | . 98 76 75 48 Engine 10 | . 14 10 11 7 Treads 17 | . 28 22 7 4 Flight 8 | . . . 23 20 Storage 19 | . 26 22 16 7 Energy Gun 5 | . 14 5 . . Energy Cannon 2 | . . 5 . . Ballistic Gun 9 | . 14 11 5 2 Launcher 2 | . . . 6 5 Naked Turns 7 | . . . . 7 Heaviest Build 44 | 11 43 44 41 15 Greatest Support 40 | 40 40 40 40 20 Greatest Overweight (x) 1 | . 1 1 1 . Average Overweight (x) . | . . 1 . . Largest Inventory Capacity 14 | 6 14 14 14 6 Average Capacity 10 | 5 13 14 9 5 Most Carried 14 | 4 4 11 14 6 Average Carried 5 | 1 2 6 8 5 Final Capacity 14 | 6 14 14 6 4 Final Carried 11 | 1 4 11 6 3 Class Distribution -------------------- 83% | Mutant 8% | Scavenger-Sprinter 8% | Scavenger-Mutant Dominant Class ---------------- Mutant | -10/Materials Mutant | -9/Materials Scavenger-Mutant | -9/Mines Mutant | -8/Materials Resources | -11 -10 -9 -9 -8 ----------- Run | Scr Mat Mat Min Mat Matter Collected 513 | 242 43 63 117 48 Remotely . | . . . . . Salvage Created 860 | 88 96 280 175 221 Parts 47 | 1 4 18 9 15 Haulers Intercepted . | . . . . . Recyclers Shooed . | . . . . . Parts Field Recycled . | . . . . . Retrieved Matter . | . . . . . Parts Self-Destructed . | . . . . . Prevented . | . . . . . Kills | -11 -10 -9 -9 -8 ------- Run | Scr Mat Mat Min Mat Combat Hostiles Destroyed 25 | . 2 8 9 6 Melee 1 | . . . . 1 Guns 13 | . 2 5 3 3 Cannons 3 | . . 3 . . AOE 8 | . . . 6 2 Classes Destroyed 8 | 1 1 2 1 3 Worker 3 | . . . . 3 Builder 1 | . . . . 1 Recycler 3 | 1 . . 1 1 Watcher 1 | . . . . 1 Swarmer 10 | . . 3 7 . Grunt 10 | . 2 4 . 4 Sentry 3 | . . 1 . 2 Assembled 2 | . . . 2 . Best Kill Streak 6 | 1 2 3 6 6 Combat Bots Only 5 | . 2 3 5 2 Max Kills in Single Turn 2 | 1 1 1 2 2 Gunslinging . | . . . . . Exploded 2 | . . . 2 1 Melee 1 | . . . . 1 Uniques/NPCs Destroyed . | . . . . . Combat | -11 -10 -9 -9 -8 -------- Run | Scr Mat Mat Min Mat Damage Taken 2539 | . 57 260 1027 1195 Core 867 | . 23 30 251 563 Absorbed by Shields . | . . . . . Core Remaining (%) 73 | 100 90 . 29 . Volleys Fired 89 | 2 5 16 30 36 Largest 2 | 1 2 2 2 1 Hottest 130 | 40 60 80 130 33 Shots Fired 118 | 2 10 32 38 36 Gun 73 | 2 10 20 17 24 Cannon 18 | . . 12 6 . Launcher 22 | . . . 10 12 Special 5 | . . . 5 . Kinetic 62 | . 5 16 17 24 Thermal 23 | . . 12 11 . Explosive 22 | . . . 10 12 Electromagnetic 11 | 2 5 4 . . Robot Hit Streak 17 | 2 7 17 15 9 Robot Miss Streak 5 | . 1 1 5 1 Penetration Max . | . . . . . Secondary Targets . | . . . . . Shots Hit Robots 88 | 2 8 27 23 28 Core Hits 66 | 2 4 13 19 28 Critical Hits . | . . . . . Critical Kills . | . . . . . Critical Parts Destroyed . | . . . . . Melee Attacks . | . . . . . Impact . | . . . . . Slashing . | . . . . . Piercing . | . . . . . Sneak Attacks . | . . . . . Combat Hostiles . | . . . . . Follow-up Attacks . | . . . . . Damage Inflicted 2229 | 25 106 422 694 982 Guns 635 | 25 106 211 134 159 Cannons 262 | . . 211 51 . Explosions 1305 | . . . 485 820 Melee . | . . . . . Ramming 3 | . . . . 3 Kinetic 504 | . 51 160 134 159 Thermal 286 | . . 211 75 . Explosive 1305 | . . . 485 820 Electromagnetic 131 | 25 55 51 . . Impact . | . . . . . Slashing . | . . . . . Piercing . | . . . . . Highest Corruption . | . . . . . Average Corruption . | . . . . . Corruption Purged . | . . . . . Overload Shots . | . . . . . Overflow Damage 79 | . . . 59 20 Projectiles . | . . . . . Explosions 79 | . . . 59 20 Melee . | . . . . . Knockbacks . | . . . . . Impact . | . . . . . Kinetic . | . . . . . Secondary . | . . . . . Self-Inflicted Damage 394 | . . . 209 185 Shots 13 | . . . 6 7 Rammed 1 | . . . . 1 Targets Rammed 1 | . . . . 1 Kicked . | . . . . . Crushed . | . . . . . Highest Temperature 156 | . 18 43 156 14 Average Temperature 37 | . 10 22 65 6 Received Heat Transfer 465 | . 30 66 . 369 Siege Activations . | . . . . . Robots Corrupted . | . . . . . Combat Hostiles . | . . . . . Parts Fried . | . . . . . Impact Corruptions . | . . . . . Robots Melted . | . . . . . Combat Hostiles . | . . . . . Parts Melted . | . . . . . Heat Transferred 605 | . . 444 161 . Parts Sabotaged . | . . . . . Parts Stolen . | . . . . . Parts Stripped . | . . . . . Power Chain Reactions . | . . . . . Missiles Intercepted . | . . . . . Alert | -11 -10 -9 -9 -8 ------- Run | Scr Mat Mat Min Mat Peak Influence 329 | 5 93 234 211 329 Initial 91 | . 3 39 91 78 Average 111 | 2 33 130 125 196 Maximum Alert Level 1 | . . 1 1 1 Low Security (%) 82 | 100 100 82 93 48 Level 1 17 | . . 17 6 51 Level 2 . | . . . . . Level 3 . | . . . . . Level 4 . | . . . . . Level 5 . | . . . . . High Security . | . . . . . Max Security . | . . . . . Squads Dispatched 8 | . 2 3 . 3 Investigation 2 | . . 1 . 1 Extermination . | . . . . . Reinforcement 6 | . 2 2 . 2 Assault . | . . . . . Garrison . | . . . . . Intercept . | . . . . . Construction Impeded 1 | . . . . 1 Haulers Reinforced . | . . . . . Stealth | -11 -10 -9 -9 -8 --------- Run | Scr Mat Mat Min Mat Distress Signals 3 | . . . . 3 Communications Jammed . | . . . . . Distress Signals . | . . . . . Times Spotted 48 | . 5 10 14 19 Peak Tracking Total 9 | . 2 5 4 9 Tactical Retreats 3 | . . . 1 2 Traps | -11 -10 -9 -9 -8 ------- Run | Scr Mat Mat Min Mat Traps Triggered 3 | . . 2 . 1 Indirectly . | . . . . . Trap Hack Attempts . | . . . . . Triggered . | . . . . . Disarmed . | . . . . . Reprogrammed . | . . . . . Reused . | . . . . . Traps Extracted . | . . . . . Installed . | . . . . . Triggered . | . . . . . Machines | -11 -10 -9 -9 -8 ---------- Run | Scr Mat Mat Min Mat Machines Disabled 2 | . . . 2 . Max in Single Turn 1 | . . . 1 . Machines Sabotaged . | . . . . . Garrisons Compromised . | . . . . . Overloaded Fab Kills . | . . . . . Fab Network Shutdowns . | . . . . . Hacking | -11 -10 -9 -9 -8 --------- Run | Scr Mat Mat Min Mat Machines Accessed . | . . . . . Terminals . | . . . . . Fabricators . | . . . . . Repair Stations . | . . . . . Recycling Units . | . . . . . Scanalyzers . | . . . . . Garrison Access . | . . . . . Total Hacks . | . . . . . Successful . | . . . . . Failed . | . . . . . Catastrophic . | . . . . . Database Lockouts . | . . . . . Manual . | . . . . . Terminals . | . . . . . Fabricators . | . . . . . Repair Stations . | . . . . . Recycling Units . | . . . . . Scanalyzers . | . . . . . Garrison Access . | . . . . . Terminal Hacks . | . . . . . Fabricator Hacks . | . . . . . Repair Station Hacks . | . . . . . Recycling Unit Hacks . | . . . . . Scanalyzer . | . . . . . Garrison Access Hacks . | . . . . . Unauthorized Hacks . | . . . . . Terminals . | . . . . . Fabricators . | . . . . . Repair Stations . | . . . . . Recycling Units . | . . . . . Scanalyzers . | . . . . . Garrison Access . | . . . . . Data Cores Recovered . | . . . . . Used . | . . . . . Hacking Detections . | . . . . . Full Trace Events . | . . . . . Feedback Events . | . . . . . Feedback Blocked . | . . . . . Robot Schematics Acquired . | . . . . . Robots Built . | . . . . . Matter . | . . . . . Time . | . . . . . Total Robot Build Rating . | . . . . . Part Schematics Acquired . | . . . . . Parts Built . | . . . . . Matter . | . . . . . Time . | . . . . . Total Part Build Rating . | . . . . . Parts Repaired . | . . . . . Time . | . . . . . Parts Recycled . | . . . . . Recycled Matter . | . . . . . Retrieved Matter . | . . . . . Retrieved Components . | . . . . . Parts Scanalyzed . | . . . . . Part Schematics Acquired . | . . . . . Parts Damaged . | . . . . . Bothacking | -11 -10 -9 -9 -8 ------------ Run | Scr Mat Mat Min Mat Used RIF Installer . | . . . . . Robots Hacked . | . . . . . Non-combat . | . . . . . Combat . | . . . . . Robot Hacks Applied . | . . . . . Relay Couplers Released . | . . . . . Robots Rewired . | . . . . . Allies Hacked . | . . . . . Hacks Repelled . | . . . . . Allies | -11 -10 -9 -9 -8 -------- Run | Scr Mat Mat Min Mat Total Allies . | . . . . . Largest Group . | . . . . . Highest-Rated Group . | . . . . . Highest-Rated Ally . | . . . . . Total Orders . | . . . . . Ally Attacks . | . . . . . Total Damage . | . . . . . Kills . | . . . . . Allies Corrupted . | . . . . . Allies Melted . | . . . . . Intel | -11 -10 -9 -9 -8 ------- Run | Scr Mat Mat Min Mat Robot Analysis Total . | . . . . . Derelict Logs Recovered . | . . . . . Drone Launches . | . . . . . Drone Recoveries . | . . . . . Exploration | -11 -10 -9 -9 -8 ------------- Run | Scr Mat Mat Min Mat Turns Passed 1008 | 63 245 341 152 207 Spaces Moved 541 | 34 124 145 49 189 Core 13 | 7 . . . 6 Treads 340 | 27 124 145 11 33 Legs 4 | . . . . 4 Wheels . | . . . . . Hover . | . . . . . Flight 184 | . . . 38 146 Fastest Speed 28 | 50 160 180 31 28 Average Speed 124 | 137 177 180 64 61 Slowest Speed 180 | 160 180 180 180 160 Overloaded Moves . | . . . . . Propulsion Burnouts . | . . . . . Robots Hopped 6 | . . . 3 3 Cave-ins Triggered . | . . . . . Exploration Rate (%) 18 | 4 26 17 17 27 Regions Visited 4 Branch Regions 1 Pre-discovered Areas . | . . . . . Known Exits Taken . | . . . . . Unknown Exits Taken 4 | 1 1 1 1 . Scrap Searched . | . . . . . Spaces Dug . | . . . . . Terrain Destroyed 138 | . . . 79 59 Melee . | . . . . . Projectile . | . . . . . AOE 138 | . . . 79 59 Terrain Rammed . | . . . . . Walls Destroyed . | . . . . . Machines Disabled . | . . . . . Actions | -11 -10 -9 -9 -8 --------- Run | Scr Mat Mat Min Mat Total 747 | 48 140 193 119 247 Wait 66 | . 7 22 25 12 Move 526 | 33 123 144 43 183 Hop 5 | . . . 2 3 Pick Up 29 | 7 4 9 5 4 Fast Attach 2 | . . . . 2 Attach 22 | 6 1 2 9 4 Detach . | . . . . . Swap 3 | . . . 3 . Drop 4 | . . . 2 2 Fire 89 | 2 5 16 30 36 Melee . | . . . . . Ram 1 | . . . . 1 Kick . | . . . . . Crush . | . . . . . Escape Stasis . | . . . . . Rewire . | . . . . . Trap . | . . . . . Miscellaneous . | . . . . . Route ------- -11/Scrapyard -10/Materials -9/Materials -9/Mines -8/Materials (discovered 1 exit: [*Fac]) History --------- Turn | Location | Event 34 | -11/Scrapyard | Discovered new exit (range 13) 64 | -11/Scrapyard | Entered Materials 236 | -10/Materials | Discovered new exit (range 15) 304 | -10/Materials | Build established: Mutant 309 | -10/Materials | Entered another Materials area 309 | -9/Materials | Evolved 2 slots: Propulsion x2 539 | -9/Materials | Discovered new exit (range 16) 650 | -9/Materials | Entered Mines 677 | -9/Mines | Assembled infested the area 718 | -9/Mines | Core integrity fell below 50% 795 | -9/Mines | Lost 7 parts (1p3n1u2w) 801 | -9/Mines | Discovered new exit (range 6) 802 | -9/Mines | Entered Materials 802 | -8/Materials | Evolved 2 slots: Propulsion x1, Utility x1 899 | -8/Materials | Discovered new exit (range 8) 904 | -8/Materials | Lost 3 parts (3n) 969 | -8/Materials | Core integrity fell below 50% 995 | -8/Materials | Core integrity fell below 20% 1009 | -8/Materials | Destroyed by H-55 Commando with Gauss Rifle Last Messages --------------- 00992_ ALERT: Construction progress impeded, dispatching reinforcements to local area. 00992_ U-05 Engineer destroyed. 00994_ The unstable cave ceiling collapses. 00994_ Wheel crushed. 00998_ The unstable cave ceiling collapses. 00998_ Penetrated by Slug. 00998_ Rocket Launcher destroyed. 00999_ Slammed into Y-45 Defender. 00999_ Y-45 Defender destroyed. 01000_ Acquired 20 matter. 01001_ R-06 Scavenger collects Beam Rifle. 01002_ The unstable cave ceiling collapses. 01002_ Acquired Imp. Carbon-fiber Leg. 01003_ Dropped Imp. Carbon-fiber Leg. 01003_ Acquired Imp. Carbon-fiber Leg. 01004_ Penetrated by Slug. 01006_ Slug penetrates Wall. 01007_ R-06 Scavenger collects Hcp. Storage Unit. 01007_ Slug penetrates Wall. Map ----- +----------------------------------------------------+ | ?????????????????????????????????????????????? | | ?????????????????????????????????????????????? | | ?????????????????????????????????????????????? | | ?????????????????????????????????????????????? | | ?????????????????????????????????????????????? | | ?????????????????????????????????????????????? | | ?????????????????????????????????????????????? | | ?????????????????????????????????????????????? | | ?????????????????????????????????????????????? | | ?????????????????????????????????????????????? | | ?????????????????????????????????????????????? | | ?????????????????????????????????????????????? | | ?????????????????????????????????????????????? | | ?????????????????????????????????????????????? | | ?????????????????????????????????????????????? | | ?????????????????????????????????????????????? | | ?????????????????????????????????????????????? | | ?????????????????????????????????????????????? | | ?????????????????????????????????????????????? | | ?????????????????????????????????????????????? | | ????????????????????????######???????????????? | | ????????????????????????+ ????????????????? | | ????????????????????????# ?????????????????? | | ????????????????????????# #?????????????????? | | ????????????????????????# #?????????????????? | | ????????????????????????#@ #####?????????????? | | ????????????????????????# g =#?????????????? | | ?????????????????######?# ==##????????????? | | ?????????????????# # ##???????????? | | ?????????????????# #???????????? | | ?????????????????# r * #???????????? | | ?????????????????# w *%*#???????????? | | ?????????????????# h #= #???????????? | | ?????????????????# %# #####???????? | | ??????????????##### # """""???????? | | ?????????????? ! #% """""???????? | | ????????????? #[ """"" #????? | | ?????????????? """ #h #????? | | ???????????????##### "Y" + [ ! #????? | | ???????????????????# # #????? | | ???????????????????# # "T" #????? | | ???????????????????# ! #############????? | | ???????????????????# #????????????? | | ???????????????????# < #????????????? | | ???????????????????# #????????????? | | ???????????????????# #####+####????????????? | | ????????????######## #?? ??????????????? | | ????????????# #?# ????????????? | | ????????????# #?# ??????????? | | ????????????# #?# """ """ #?????????? | +----------------------------------------------------+ Best States ------------- Heat Dissipation 38 Energy Generation 16 Energy Capacity 290 Matter Stores 300 Matter Capacity 300 Sight Range 16 Terrain Scan Density 10 Evasion (%) 64 Recoil Reduction 2 Item Schematics ----------------- None Robot Schematics ------------------ None Fabricated ------------ Nothing Alien Tech Used ----------------- None Achievements -------------- None Challenges ------------ None Game ------ Seed HypervelocityCentriumJammer Manual? 0 Play Time 00:19:05 Cumulative 45.9 hours Start 2022.01.20 @ 08:24:40 End 2022.01.20 @ 08:42:02 Sessions 1 Manual Loads 0 Difficulty Rogue Special Mode None Game No. 52 Rogue 9 Adventurer 1 Explorer 42 Win Type - Total 4 Types 4/0/0/0/0/0/0/0/0 Lore% 29 Gallery% 44 Achievement% 35 Wizard Run 0 Options --------- ASCII 0 Keyboard 0 Movement Numpad Keybinds 0 Fullscreen 1 Font 12/Smallcaps Map View 83x54 Tactical HUD 1 Map Filters NONE Filters NONE Steam 1 RUN: a67b1376-4ef0-4c55-a635-98a4a71b0909